fUST/lending_fUST_20240414
["ID","MTS","AMOUNT","RATE_DAILY","PERIOD"]
[322467597,1713034240706,-500.0,0.00032876,7]
[322467598,1713034240715,-505.34467129,0.00032876,7]
[322467601,1713034240731,-604.78920847,0.00032876,7]
[322467603,1713034240747,-500.0,0.00032876,7]
[322467605,1713034240757,-503.17589893,0.00032876,7]
[322467608,1713034240767,-500.0,0.00032876,7]
[322467610,1713034240777,-500.0,0.00032876,7]
[322467612,1713034240787,-1934.65,0.00032876,7]
[322467614,1713034240796,-500.0,0.00032876,7]
[322467616,1713034240806,-500.0,0.00032876,7]
[322467618,1713034240816,-500.0,0.00032876,7]
[322467620,1713034240829,-500.0,0.00032876,7]
[322467622,1713034240839,-500.0,0.00032876,7]
[322467624,1713034240850,-500.0,0.00032876,7]
[322467626,1713034240860,-1234.02,0.00032876,7]
[322467628,1713034240869,-500.0,0.00032876,7]
[322467630,1713034240879,-660.39,0.00032876,7]
[322467632,1713034240888,-500.0,0.00032876,7]
[322467634,1713034240897,-502.93551014,0.00032876,7]
[322467636,1713034240906,-500.0,0.00032876,7]
[322467638,1713034240917,-8360.86,0.00032876,7]
[322467640,1713034240927,-500.0,0.00032876,7]
[322467643,1713034240939,-300.0,0.00032876,7]
[322467645,1713034240948,-500.0,0.00032876,7]
[322467647,1713034240957,-1086.08,0.00032876,7]
[322467649,1713034240967,-506.63996995,0.00032876,7]
[322467651,1713034240976,-500.0,0.00032876,7]
[322467653,1713034240985,-500.0,0.00032876,7]
[322467655,1713034240995,-30751.42,0.00032876,7]
[322467657,1713034241005,-500.0,0.00032876,7]
[322467659,1713034241014,-940.83,0.00032876,7]
[322467661,1713034241024,-500.0,0.00032876,7]
[322467663,1713034241034,-275.83421792,0.00032876,7]
[322467665,1713034241044,-500.0,0.00032876,7]
[322467667,1713034241054,-1345.11,0.00032876,2]
[322467669,1713034241063,-488.00298307,0.00032876,7]
[322467671,1713034241074,-639.35,0.00032876,7]
[322467673,1713034241084,-500.0,0.00032876,7]
[322467675,1713034241093,-502.56745271,0.00032876,7]
[322467677,1713034241103,-2343.97,0.00032876,7]
[322467679,1713034241112,-500.0,0.00032876,7]
[322467681,1713034241122,-499.39043389,0.00032876,7]
[322467683,1713034241132,-867.98,0.00032876,7]
[322467685,1713034241141,-400.0,0.00032877,2]
[322467687,1713034241150,-202.9164481,0.000329,2]
[322467689,1713034241159,-500.0,0.00032999,7]
[322467691,1713034241168,-500.0,0.00032999,7]
[322467693,1713034241178,-500.0,0.00032999,7]
[322467695,1713034241188,-500.0,0.00032999,7]
[322467697,1713034241197,-1200.0,0.00033,4]
[322467699,1713034241206,-151.0,0.00033,2]
[322467701,1713034241216,-7000.0,0.00033,4]
[322467703,1713034241225,-6883.35049181,0.00033,3]
[322467705,1713034241236,-302.0,0.00033,2]
[322467707,1713034241245,-7470.88179947,0.00033,2]
[322467709,1713034241255,-192.43259005,0.0003305,2]
[322467711,1713034241264,-167.056789,0.00033064,2]
[322467713,1713034241273,-404.21971349,0.00033148,2]
[322467715,1713034241282,-500.0,0.00033148,7]
[322467717,1713034241291,-500.0,0.00033148,7]
[322467719,1713034241301,-500.0,0.00033148,7]
[322467721,1713034241310,-500.0,0.00033148,7]
[322467723,1713034241320,-500.0,0.00033148,7]
[322467725,1713034241330,-500.0,0.00033148,7]
[322467727,1713034241338,-500.0,0.00033149,7]
[322467729,1713034241348,-500.0,0.00033149,7]
[322467731,1713034241357,-500.0,0.00033149,7]
[322467733,1713034241366,-504.24950144,0.00033149,7]
[322467735,1713034241375,-500.0,0.00033149,7]
[322467737,1713034241384,-501.33177882,0.00033149,7]
[322467739,1713034241393,-500.0,0.00033149,7]
[322467741,1713034241402,-500.0,0.00033149,7]
[322467743,1713034241411,-500.0,0.00033149,7]
[322467745,1713034241420,-449.79776823,0.00033149,7]
[322467747,1713034241430,-500.0,0.00033149,7]
[322467749,1713034241439,-1404.8,0.00033149,7]
[322467751,1713034241448,-500.0,0.00033149,7]
[322467753,1713034241457,-500.0,0.00033149,7]
[322467755,1713034241467,-500.0,0.00033149,7]
[322467757,1713034241475,-500.0,0.00033149,7]
[322467759,1713034241485,-501.17687522,0.00033149,7]
[322467761,1713034241494,-500.0,0.00033149,7]
[322467763,1713034241503,-500.0,0.00033149,7]
[322467765,1713034241512,-500.0,0.00033149,7]
[322467767,1713034241520,-500.0,0.00033149,7]
[322467769,1713034241530,-412.440759,0.00033149,7]
[322467771,1713034241539,-6138.13,0.00033149,2]
[322467773,1713034241548,-6138.13,0.00033149,2]
[322467775,1713034241558,-6138.13,0.00033149,2]
[322467777,1713034241570,-6138.13,0.00033149,2]
[322467779,1713034241580,-6138.13,0.00033149,2]
[322467781,1713034241590,-6138.13,0.00033149,2]
[322467783,1713034241599,-6138.13,0.00033149,2]
[322467785,1713034241609,-6138.13,0.00033149,2]
[322467787,1713034241619,-6138.13,0.00033149,2]
[322467789,1713034241628,-151.0,0.00033149,2]
[322467791,1713034241640,-1014.05805107,0.0003315,4]
[322467793,1713034241651,-500.0,0.0003315,7]
[322467795,1713034241660,-500.0,0.0003315,7]
[322467797,1713034241669,-500.0,0.0003315,7]
[322467799,1713034241679,-151.0,0.0003315,2]
[322467801,1713034241688,-253.704668,0.0003315,2]
[322467803,1713034241697,-500.0,0.0003315,7]
[322467805,1713034241706,-500.0,0.0003315,7]
[322467807,1713034241716,-734.77,0.0003315,7]
[322467809,1713034241725,-500.0,0.0003315,7]
[322467811,1713034241734,-894.15,0.0003315,7]
[322467813,1713034241743,-522.45962337,0.0003315,7]
[322467814,1713034241752,-500.0,0.0003315,7]
[322467816,1713034241761,-500.0,0.0003315,7]
[322467819,1713034241772,-500.0,0.0003315,7]
[322467821,1713034241781,-1079.46,0.0003315,7]
[322467822,1713034241791,-151.0,0.0003315,2]
[322467824,1713034241800,-151.0,0.0003315,2]
[322467827,1713034241810,-151.0,0.0003315,2]
[322467828,1713034241824,-151.0,0.0003315,2]
[322467830,1713034241833,-500.0,0.0003315,7]
[322467832,1713034241844,-500.0,0.0003315,7]
[322467835,1713034241854,-694.657353,0.0003315,2]
[322467837,1713034241864,-694.657353,0.0003315,2]
[322467839,1713034241874,-500.0,0.0003315,7]
[322467841,1713034241883,-500.0,0.0003315,7]
[322467842,1713034241892,-500.0,0.0003315,7]
[322467844,1713034241902,-849.98,0.0003315,7]
[322467847,1713034241912,-500.0,0.0003315,7]
[322467848,1713034241922,-500.0,0.0003315,7]
[322467851,1713034241931,-151.0,0.0003315,2]
[322467852,1713034241940,-220.775652,0.0003315,2]
[322467855,1713034241950,-1998.2,0.0003315,7]
[322467856,1713034241959,-783.49,0.0003315,7]
[322467859,1713034241969,-500.0,0.0003315,7]
[322467861,1713034241978,-500.0,0.0003315,7]
[322467863,1713034241989,-500.0,0.0003315,7]
[322467865,1713034241998,-151.0,0.0003315,2]
[322467867,1713034242007,-151.0,0.0003315,2]
[322467869,1713034242016,-900.938851,0.0003315,2]
[322467870,1713034242025,-900.938851,0.0003315,2]
[322467873,1713034242035,-900.938851,0.0003315,2]
[322467874,1713034242044,-900.938851,0.0003315,2]
[322467876,1713034242054,-500.0,0.0003315,7]
[322467878,1713034242063,-500.0,0.0003315,7]
[322467881,1713034242075,-412.228206,0.0003315,2]
[322467882,1713034242085,-412.228206,0.0003315,2]
[322467884,1713034242095,-151.0,0.0003315,2]
[322467887,1713034242105,-151.0,0.0003315,2]
[322467889,1713034242114,-151.0,0.0003315,2]
[322467890,1713034242124,-500.0,0.0003315,7]
[322467893,1713034242133,-173.91980545,0.0003315,7]
[322467895,1713034242142,-500.0,0.0003315,7]
[322467897,1713034242152,-500.0,0.0003315,7]
[322467898,1713034242161,-151.0,0.0003315,2]
[322467900,1713034242171,-151.0,0.0003315,2]
[322467902,1713034242180,-500.0,0.0003315,7]
[322467905,1713034242189,-500.0,0.0003315,7]
[322467907,1713034242199,-507.89043381,0.0003315,7]
[322467909,1713034242209,-500.0,0.0003315,7]
[322467910,1713034242218,-631.18,0.0003315,7]
[322467912,1713034242227,-500.0,0.0003315,7]
[322467915,1713034242238,-500.0,0.0003315,7]
[322467916,1713034242247,-500.0,0.0003315,7]
[322467918,1713034242256,-151.0,0.0003315,2]
[322467920,1713034242265,-151.0,0.0003315,2]
[322467922,1713034242275,-500.0,0.0003315,7]
[322467924,1713034242284,-500.0,0.0003315,7]
[322467926,1713034242293,-151.0,0.0003315,2]
[322467928,1713034242302,-151.0,0.0003315,2]
[322467930,1713034242312,-151.0,0.0003315,2]
[322467932,1713034242324,-151.0,0.0003315,2]
[322467934,1713034242333,-500.0,0.0003315,7]
[322467936,1713034242342,-166.831049,0.0003315,2]
[322467938,1713034242351,-500.0,0.0003315,7]
[322467940,1713034242360,-500.0,0.0003315,7]
[322467942,1713034242369,-166.831049,0.0003315,2]
[322467945,1713034242378,-500.0,0.0003315,7]
[322467947,1713034242387,-1108.29,0.0003315,7]
[322467948,1713034242400,-500.0,0.0003315,7]
[322467951,1713034242410,-500.0,0.0003315,7]
[322467952,1713034242420,-1058.01,0.0003315,7]
[322467954,1713034242430,-151.0,0.0003315,2]
[322467956,1713034242438,-151.0,0.0003315,2]
[322467958,1713034242448,-151.0,0.0003315,2]
[322467961,1713034242457,-151.0,0.0003315,2]
[322467963,1713034242467,-3156.38,0.0003315,7]
[322467965,1713034242477,-3130.05,0.0003315,7]
[322467967,1713034242486,-151.0,0.0003315,2]
[322467969,1713034242496,-151.0,0.0003315,2]
[322467971,1713034242508,-500.0,0.0003315,7]
[322467973,1713034242517,-2204.21,0.0003315,7]
[322467977,1713034242532,-500.0,0.0003315,7]
[322467980,1713034242542,-1292.06,0.0003315,7]
[322467983,1713034242551,-2257.86,0.0003315,7]
[322467985,1713034242560,-184.233414,0.0003315,2]
[322467987,1713034242571,-184.233414,0.0003315,2]
[322467989,1713034242581,-2347.19,0.0003315,7]
[322467991,1713034242590,-155.450434,0.0003315,2]
[322467993,1713034242600,-2771.79,0.0003315,7]
[322467995,1713034242610,-500.0,0.0003315,7]
[322467998,1713034242619,-5441.75,0.0003315,7]
[322468001,1713034242629,-151.0,0.0003315,2]
[322468005,1713034242641,-500.0,0.0003315,7]
[322468007,1713034242650,-816.31,0.0003315,7]
[322468010,1713034242659,-500.0,0.0003315,7]
[322468013,1713034242668,-500.0,0.0003315,7]
[322468016,1713034242678,-530.91,0.0003315,7]
[322468019,1713034242687,-720.0,0.0003315,7]
[322468022,1713034242696,-500.0,0.0003315,7]
[322468025,1713034242705,-726.94,0.0003315,7]
[322468028,1713034242715,-500.0,0.0003315,7]
[322468031,1713034242724,-500.0,0.0003315,7]
[322468034,1713034242734,-500.0,0.0003315,7]
[322468037,1713034242743,-695.69,0.0003315,7]
[322468038,1713034242752,-500.0,0.0003315,7]
[322468039,1713034242762,-500.0,0.0003315,7]
[322468040,1713034242771,-1012.3,0.0003315,7]
[322468041,1713034242780,-500.0,0.0003315,7]
[322468042,1713034242789,-2327.61,0.0003315,7]
[322468043,1713034242798,-500.0,0.0003315,7]
[322468044,1713034242807,-504.09628153,0.0003315,7]
[322468045,1713034242817,-858.26,0.0003315,7]
[322468046,1713034242829,-500.0,0.0003315,7]
[322468047,1713034242838,-1193.187531,0.0003315,2]
[322468048,1713034242847,-1193.187531,0.0003315,2]
[322468049,1713034242857,-1193.187531,0.0003315,2]
[322468050,1713034242866,-1193.187531,0.0003315,2]
[322468051,1713034242875,-927.05,0.0003315,7]
[322468052,1713034242884,-191.06795352,0.0003315,7]
[322468053,1713034242893,-500.0,0.0003315,7]
[322468054,1713034242903,-519.03290826,0.0003315,7]
[322468056,1713034242912,-717.9,0.0003315,7]
[322468058,1713034242921,-2049.3,0.0003315,7]
[322468060,1713034242931,-500.0,0.0003315,7]
[322468062,1713034242941,-505.65981487,0.0003315,7]
[322468064,1713034242950,-500.0,0.0003315,7]
[322468066,1713034242959,-1081.927643,0.0003315,2]
[322468068,1713034242969,-1081.927643,0.0003315,2]
[322468070,1713034242979,-1081.927643,0.0003315,2]
[322468072,1713034242989,-1081.927643,0.0003315,2]
[322468074,1713034242999,-500.0,0.0003315,7]
[322468076,1713034243008,-500.0,0.0003315,7]
[322468078,1713034243018,-1934.65,0.0003315,7]
[322468080,1713034243027,-500.0,0.0003315,7]
[322468082,1713034243036,-500.0,0.0003315,7]
[322468084,1713034243045,-500.0,0.0003315,7]
[322468086,1713034243055,-500.0,0.0003315,7]
[322468088,1713034243064,-1234.02,0.0003315,7]
[322468090,1713034243075,-500.0,0.0003315,7]
[322468092,1713034243085,-660.39,0.0003315,7]
[322468094,1713034243094,-500.0,0.0003315,7]
[322468096,1713034243103,-500.0,0.0003315,7]
[322468098,1713034243113,-8360.86,0.0003315,7]
[322468100,1713034243122,-500.0,0.0003315,7]
[322468102,1713034243131,-300.0,0.0003315,7]
[322468104,1713034243140,-500.0,0.0003315,7]
[322468106,1713034243149,-1086.08,0.0003315,7]
[322468108,1713034243161,-500.0,0.0003315,7]
[322468110,1713034243170,-5118.40199691,0.0003315,7]
[322468123,1713034243346,-500.0,0.00032876,7]
[322468125,1713034243356,-189.81278385,0.00032876,7]
[322468127,1713034243365,-510.00208274,0.00032876,7]
[322468130,1713034243375,-561.14403191,0.00032876,7]
[322468132,1713034243384,-227.86940097,0.00032876,7]
[322468133,1713034243393,-25633.01800309,0.0003315,7]
[322468136,1713034243402,-940.83,0.0003315,7]
[322468138,1713034243412,-500.0,0.0003315,7]
[322468140,1713034243421,-1345.11,0.0003315,2]
[322468142,1713034243430,-639.35,0.0003315,7]
[322468144,1713034243440,-500.0,0.0003315,7]
[322468146,1713034243450,-151.0,0.0003315,2]
[322468148,1713034243460,-2343.97,0.0003315,7]
[322468163,1713034243587,-500.0,0.0003315,7]
[322468165,1713034243599,-867.98,0.0003315,7]
[322468167,1713034243609,-267.91338094,0.0003315,2]
[322468169,1713034243618,-302.0,0.00033151,2]
[322468171,1713034243627,-290.246001,0.00033165,2]
[322468173,1713034243637,-155.57915177,0.00033304,2]
[322468175,1713034243648,-192.43259005,0.00033323,2]
[322468177,1713034243658,-3148.49997828,0.00033324,2]
[322468179,1713034243667,-1210.91030185,0.00033346,5]
[322468181,1713034243677,-323.89598068,0.00033422,5]
[322468183,1713034243687,-500.0,0.00033422,7]
[322468185,1713034243696,-500.0,0.00033423,7]
[322468187,1713034243705,-500.0,0.00033423,7]
[322468189,1713034243714,-500.0,0.00033423,7]
[322468192,1713034243724,-503.55194868,0.00033423,7]
[322468193,1713034243733,-209.69412608,0.00033423,7]
[322468196,1713034243743,-1404.8,0.00033423,7]
[322468198,1713034243752,-500.0,0.00033423,7]
[322468200,1713034243761,-500.0,0.00033423,7]
[322468202,1713034243770,-500.0,0.00033423,7]
[322468204,1713034243779,-502.23567579,0.00033423,7]
[322468206,1713034243788,-500.0,0.00033423,7]
[322468208,1713034243799,-500.0,0.00033423,7]
[322468210,1713034243808,-151.0,0.00033423,2]
[322468212,1713034243817,-151.0,0.00033423,2]
[322468213,1713034243828,-151.0,0.00033423,2]
[322468216,1713034243838,-151.0,0.00033423,2]
[322468218,1713034243847,-166.831049,0.00033423,2]
[322468220,1713034243856,-166.831049,0.00033423,2]
[322468222,1713034243865,-151.0,0.00033423,2]
[322468224,1713034243875,-151.0,0.00033423,2]
[322468226,1713034243884,-151.0,0.00033423,2]
[322468228,1713034243893,-151.0,0.00033423,2]
[322468229,1713034243902,-184.233414,0.00033423,2]
[322468232,1713034243911,-184.233414,0.00033423,2]
[322468234,1713034243920,-151.0,0.00033423,2]
[322468236,1713034243930,-315.09007599,0.00033424,7]
[322468237,1713034243939,-500.0,0.00033424,7]
[322468239,1713034243948,-500.0,0.00033424,7]
[322468242,1713034243957,-217.959432,0.00033424,2]
[322468244,1713034243967,-151.0,0.00033424,2]
[322468246,1713034243976,-500.0,0.00033424,7]
[322468248,1713034243985,-734.77,0.00033424,7]
[322468250,1713034243995,-894.15,0.00033424,7]
[322468252,1713034244004,-500.0,0.00033424,7]
[322468254,1713034244014,-500.0,0.00033424,7]
[322468256,1713034244022,-500.0,0.00033424,7]
[322468258,1713034244032,-1079.46,0.00033424,7]
[322468260,1713034244043,-151.0,0.00033424,2]
[322468262,1713034244052,-151.0,0.00033424,2]
[322468264,1713034244062,-151.0,0.00033424,2]
[322468266,1713034244071,-151.0,0.00033424,2]
[322468268,1713034244082,-151.0,0.00033424,2]
[322468270,1713034244094,-209.680876,0.00033424,2]
[322468272,1713034244103,-500.0,0.00033424,7]
[322468274,1713034244113,-500.0,0.00033424,7]
[322468276,1713034244122,-694.657353,0.00033424,2]
[322468278,1713034244131,-694.657353,0.00033424,2]
[322468280,1713034244140,-694.657353,0.00033424,2]
[322468282,1713034244149,-694.657353,0.00033424,2]
[322468284,1713034244159,-500.0,0.00033424,7]
[322468286,1713034244168,-500.0,0.00033424,7]
[322468288,1713034244177,-849.98,0.00033424,7]
[322468290,1713034244185,-518.626347,0.00033424,7]
[322468292,1713034244194,-573.95846797,0.00033424,7]
[322468294,1713034244204,-151.0,0.00033424,2]
[322468296,1713034244213,-151.0,0.00033424,2]
[322468298,1713034244222,-1998.2,0.00033424,7]
[322468300,1713034244231,-783.49,0.00033424,7]
[322468302,1713034244240,-500.0,0.00033424,7]
[322468304,1713034244250,-500.0,0.00033424,7]
[322468306,1713034244259,-151.0,0.00033424,2]
[322468308,1713034244269,-151.0,0.00033424,2]
[322468310,1713034244279,-151.0,0.00033424,2]
[322468312,1713034244288,-151.0,0.00033424,2]
[322468315,1713034244297,-900.938851,0.00033424,2]
[322468317,1713034244306,-900.938851,0.00033424,2]
[322468319,1713034244316,-900.938851,0.00033424,2]
[322468321,1713034244326,-900.938851,0.00033424,2]
[322468323,1713034244335,-500.0,0.00033424,7]
[322468325,1713034244344,-412.228206,0.00033424,2]
[322468327,1713034244354,-412.228206,0.00033424,2]
[322468329,1713034244363,-412.228206,0.00033424,2]
[322468331,1713034244372,-412.228206,0.00033424,2]
[322468333,1713034244382,-151.0,0.00033424,2]
[322468335,1713034244391,-151.0,0.00033424,2]
[322468337,1713034244400,-151.0,0.00033424,2]
[322468339,1713034244410,-263.284646,0.00033424,2]
[322468341,1713034244419,-500.0,0.00033424,7]
[322468343,1713034244428,-500.0,0.00033424,7]
[322468345,1713034244438,-437.96672686,0.00033424,7]
[322468347,1713034244447,-151.0,0.00033424,2]
[322468349,1713034244455,-500.0,0.00033424,7]
[322468351,1713034244465,-500.0,0.00033424,7]
[322468353,1713034244474,-631.18,0.00033424,7]
[322468355,1713034244483,-500.0,0.00033424,7]
[322468357,1713034244492,-500.0,0.00033424,7]
[322468359,1713034244501,-260.042809,0.00033424,7]
[322468361,1713034244511,-151.0,0.00033424,2]
[322468363,1713034244520,-500.0,0.00033424,7]
[322468365,1713034244530,-151.0,0.00033424,2]
[322468367,1713034244539,-271.385961,0.00033424,2]
[322468369,1713034244549,-166.831049,0.00033424,2]
[322468371,1713034244558,-151.96993164,0.00033424,7]
[322468373,1713034244567,-166.831049,0.00033424,2]
[322468375,1713034244578,-500.0,0.00033424,7]
[322468377,1713034244588,-166.831049,0.00033424,2]
[322468379,1713034244597,-166.831049,0.00033424,2]
[322468381,1713034244607,-500.0,0.00033424,7]
[322468383,1713034244616,-1108.29,0.00033424,7]
[322468385,1713034244625,-500.0,0.00033424,7]
[322468387,1713034244637,-1058.01,0.00033424,7]
[322468389,1713034244646,-151.0,0.00033424,2]
[322468391,1713034244655,-151.0,0.00033424,2]
[322468393,1713034244665,-3130.05,0.00033424,7]
[322468395,1713034244674,-3156.38,0.00033424,7]
[322468397,1713034244684,-151.0,0.00033424,2]
[322468400,1713034244694,-151.0,0.00033424,2]
[322468401,1713034244706,-151.0,0.00033424,2]
[322468404,1713034244716,-151.0,0.00033424,2]
[322468406,1713034244725,-500.0,0.00033424,7]
[322468408,1713034244737,-2204.21,0.00033424,7]
[322468409,1713034244746,-1292.06,0.00033424,7]
[322468412,1713034244756,-2257.86,0.00033424,7]
[322468414,1713034244765,-184.233414,0.00033424,2]
[322468416,1713034244775,-184.233414,0.00033424,2]
[322468418,1713034244783,-184.233414,0.00033424,2]
[322468419,1713034244793,-184.233414,0.00033424,2]
[322468422,1713034244803,-2347.19,0.00033424,7]
[322468424,1713034244813,-2771.79,0.00033424,7]
[322468425,1713034244821,-5441.75,0.00033424,7]
[322468428,1713034244833,-500.0,0.00033424,7]
[322468430,1713034244842,-151.0,0.00033424,2]
[322468432,1713034244851,-151.0,0.00033424,2]
[322468434,1713034244860,-816.31,0.00033424,7]
[322468436,1713034244869,-500.0,0.00033424,7]
[322468438,1713034244878,-500.0,0.00033424,7]
[322468440,1713034244887,-530.91,0.00033424,7]
[322468441,1713034244897,-720.0,0.00033424,7]
[322468444,1713034244907,-500.0,0.00033424,7]
[322468446,1713034244917,-726.94,0.00033424,7]
[322468448,1713034244926,-500.0,0.00033424,7]
[322468449,1713034244935,-695.69,0.00033424,7]
[322468451,1713034244945,-247.71452935,0.00033424,7]
[322468454,1713034244954,-500.0,0.00033424,7]
[322468456,1713034244963,-1012.3,0.00033424,7]
[322468458,1713034244972,-617.78378399,0.00033424,7]
[322468459,1713034244982,-2327.61,0.00033424,7]
[322468461,1713034244992,-500.0,0.00033424,7]
[322468463,1713034245001,-858.26,0.00033424,7]
[322468465,1713034245010,-500.0,0.00033424,7]
[322468467,1713034245019,-1193.187531,0.00033424,2]
[322468469,1713034245028,-1193.187531,0.00033424,2]
[322468471,1713034245037,-1193.187531,0.00033424,2]
[322468473,1713034245047,-1193.187531,0.00033424,2]
[322468475,1713034245057,-927.05,0.00033424,7]
[322468477,1713034245066,-500.0,0.00033424,7]
[322468480,1713034245086,-717.9,0.00033424,7]
[322468482,1713034245096,-2049.3,0.00033424,7]
[322468484,1713034245108,-500.0,0.00033424,7]
[322468486,1713034245117,-1081.927643,0.00033424,2]
[322468488,1713034245127,-1081.927643,0.00033424,2]
[322468490,1713034245137,-1081.927643,0.00033424,2]
[322468492,1713034245146,-1081.927643,0.00033424,2]
[322468494,1713034245156,-172.81493588,0.00033424,7]
[322468496,1713034245165,-1934.65,0.00033424,7]
[322468497,1713034245174,-500.0,0.00033424,7]
[322468500,1713034245184,-500.0,0.00033424,7]
[322468501,1713034245193,-615.60880912,0.00033424,7]
[322468503,1713034245202,-1234.02,0.00033424,7]
[322468505,1713034245211,-500.0,0.00033424,7]
[322468507,1713034245220,-660.39,0.00033424,7]
[322468509,1713034245229,-500.0,0.00033424,7]
[322468511,1713034245238,-8360.86,0.00033424,7]
[322468513,1713034245247,-500.0,0.00033424,7]
[322468516,1713034245257,-410.75525603,0.00033424,7]
[322468517,1713034245266,-1086.08,0.00033424,7]
[322468520,1713034245275,-500.0,0.00033424,7]
[322468521,1713034245285,-24308.17763118,0.00033424,7]
[322468524,1713034245300,-6443.24236882,0.00033424,7]
[322468526,1713034245309,-940.83,0.00033424,7]
[322468528,1713034245319,-1345.11,0.00033424,2]
[322468530,1713034245331,-639.35,0.00033424,7]
[322468532,1713034245340,-2343.97,0.00033424,7]
[322468534,1713034245349,-500.0,0.00033424,7]
[322468536,1713034245358,-867.98,0.00033424,7]
[322468538,1713034245366,-221.754,0.00033528,2]
[322468540,1713034245375,-253.9,0.00033574,2]
[322468542,1713034245384,-253.9,0.00033574,2]
[322468544,1713034245393,-151.0,0.00033574,2]
[322468546,1713034245402,-151.0,0.00033574,2]
[322468548,1713034245411,-151.0,0.00033574,2]
[322468550,1713034245420,-151.0,0.00033574,2]
[322468552,1713034245429,-151.0,0.00033574,2]
[322468555,1713034245438,-151.0,0.00033595,2]
[322468556,1713034245448,-151.0,0.00033595,2]
[322468558,1713034245457,-694.657353,0.00033595,2]
[322468561,1713034245467,-694.657353,0.00033595,2]
[322468563,1713034245476,-408.99826694,0.00033595,7]
[322468565,1713034245485,-151.0,0.00033595,2]
[322468568,1713034245495,-151.0,0.00033595,2]
[322468571,1713034245504,-292.985548,0.00033595,2]
[322468574,1713034245514,-900.938851,0.00033595,2]
[322468577,1713034245523,-900.938851,0.00033595,2]
[322468581,1713034245557,-151.0,0.00033595,2]
[322468583,1713034245566,-151.0,0.00033595,2]
[322468585,1713034245577,-412.228206,0.00033597,2]
[322468587,1713034245586,-412.228206,0.00033597,2]
[322468589,1713034245594,-151.0,0.00033597,2]
[322468591,1713034245603,-151.0,0.00033597,2]
[322468593,1713034245613,-151.0,0.00033597,2]
[322468595,1713034245621,-166.831049,0.00033597,2]
[322468597,1713034245631,-166.831049,0.00033597,2]
[322468599,1713034245639,-151.0,0.00033597,2]
[322468601,1713034245652,-151.0,0.00033597,2]
[322468603,1713034245661,-151.0,0.00033597,2]
[322468605,1713034245670,-250.123104,0.00033597,2]
[322468607,1713034245679,-184.233414,0.00033597,2]
[322468609,1713034245689,-184.233414,0.00033597,2]
[322468611,1713034245698,-1193.187531,0.00033597,2]
[322468613,1713034245708,-1193.187531,0.00033597,2]
[322468615,1713034245717,-1081.927643,0.00033597,2]
[322468617,1713034245727,-1081.927643,0.00033597,2]
[322468619,1713034245736,-58573.8069,0.00033607,30]
[322468621,1713034245746,-435.79204955,0.00033674,4]
[322468623,1713034245756,-242.99498652,0.00033674,4]
[322468625,1713034245765,-263.43758151,0.00033674,4]
[322468627,1713034245774,-151.0,0.00033674,2]
[322468629,1713034245783,-9362.0206345,0.00033675,4]
[322468631,1713034245792,-151.0,0.00033675,2]
[322468633,1713034245802,-400.0,0.00033696,2]